[Event "*** Titled Tuesday Blitz"]
[Site "Chess.com"]
[Date "2020.12.01"]
[Round "10"]
[White "catzapto"]
[Black "GMJustin"]
[Result "0-1"]
[WhiteElo "2120"]
[BlackElo "2279"]
[TimeControl "180+1"]
[EndTime "11:53:59 PST"]
[Termination "GMJustin won by checkmate"]

1. e4 {[%clk 0:03:00.9]} 1... c5 {[%clk 0:02:13]} 2. Nf3 {[%clk 0:03:00]} 2...
d6 {[%clk 0:02:06]} 3. c3 {[%clk 0:02:59.6]} 3... Nf6 {[%clk 0:02:05.3]} 4. Be2
{[%clk 0:02:59.1]} 4... Bd7 {[%clk 0:02:00.3]} 5. Qc2 {[%clk 0:02:56.6]} 5...
Qc7 {[%clk 0:01:58.6]} 6. O-O {[%clk 0:02:56.7]} 6... g6 {[%clk 0:01:56]} 7. Na3
{[%clk 0:02:57.1]} 7... Bg7 {[%clk 0:01:51.7]} 8. d4 {[%clk 0:02:57.4]} 8...
cxd4 {[%clk 0:01:50.6]} 9. cxd4 {[%clk 0:02:58.3]} 9... Qxc2 {[%clk 0:01:49.4]}
10. Nxc2 {[%clk 0:02:58.5]} 10... Nxe4 {[%clk 0:01:48.5]} 11. Re1 {[%clk
0:02:55]} 11... Nf6 {[%clk 0:01:42.2]} 12. Bc4 {[%clk 0:02:46.1]} 12... Nc6
{[%clk 0:01:37.7]} 13. d5 {[%clk 0:02:42.9]} 13... Na5 {[%clk 0:01:30.8]} 14. b3
{[%clk 0:02:36.3]} 14... Nxc4 {[%clk 0:01:13.4]} 15. bxc4 {[%clk 0:02:35.8]}
15... Rc8 {[%clk 0:01:11.4]} 16. Rb1 {[%clk 0:02:11.6]} 16... Rxc4 {[%clk
0:00:59.9]} 17. Ne3 {[%clk 0:02:12]} 17... Rc7 {[%clk 0:00:55.3]} 18. Nf1 {[%clk
0:02:03.9]} 18... Nxd5 {[%clk 0:00:53.4]} 19. Bd2 {[%clk 0:02:02.9]} 19... O-O
{[%clk 0:00:50.6]} 20. h3 {[%clk 0:01:57]} 20... Rfc8 {[%clk 0:00:49.3]} 21. Ne3
{[%clk 0:01:55.3]} 21... Nxe3 {[%clk 0:00:47.3]} 22. Bxe3 {[%clk 0:01:56.2]}
22... b6 {[%clk 0:00:44.3]} 23. Nd4 {[%clk 0:01:51.8]} 23... e5 {[%clk
0:00:40.8]} 24. Nb3 {[%clk 0:01:50.4]} 24... d5 {[%clk 0:00:37.6]} 25. Red1
{[%clk 0:01:47.6]} 25... d4 {[%clk 0:00:34.1]} 26. Bd2 {[%clk 0:01:48]} 26...
Bf5 {[%clk 0:00:33.6]} 27. Rbc1 {[%clk 0:01:44.3]} 27... Rxc1 {[%clk 0:00:32.2]}
28. Nxc1 {[%clk 0:01:45.2]} 28... Bc2 {[%clk 0:00:30.3]} 29. Re1 {[%clk
0:01:44.3]} 29... e4 {[%clk 0:00:30.4]} 30. Bb4 {[%clk 0:01:38.7]} 30... f5
{[%clk 0:00:29]} 31. g4 {[%clk 0:01:38.3]} 31... a5 {[%clk 0:00:28.3]} 32. Bd6
{[%clk 0:01:37.3]} 32... d3 {[%clk 0:00:27.7]} 33. Bf4 {[%clk 0:01:31.9]} 33...
Bc3 {[%clk 0:00:27.3]} 34. Rf1 {[%clk 0:01:28]} 34... d2 {[%clk 0:00:23.8]} 35.
Bxd2 {[%clk 0:01:27.5]} 35... Bxd2 {[%clk 0:00:23.6]} 36. Ne2 {[%clk 0:01:28.4]}
36... Bd3 {[%clk 0:00:22.5]} 37. gxf5 {[%clk 0:01:29.3]} 37... gxf5 {[%clk
0:00:21.5]} 38. Rb1 {[%clk 0:01:30.2]} 38... Bxb1 {[%clk 0:00:20.1]} 39. Ng3
{[%clk 0:01:30.7]} 39... e3 {[%clk 0:00:19.7]} 40. Nxf5 {[%clk 0:01:30.8]} 40...
e2 {[%clk 0:00:17.8]} 41. Ne7+ {[%clk 0:01:30.6]} 41... Kf7 {[%clk 0:00:17.8]}
42. Nxc8 {[%clk 0:01:31.1]} 42... e1=Q+ {[%clk 0:00:17.9]} 43. Kg2 {[%clk
0:01:32]} 43... Be4+ {[%clk 0:00:17.2]} 44. Kg3 {[%clk 0:01:32.2]} 44... Qg1+
{[%clk 0:00:14.6]} 45. Kh4 {[%clk 0:01:32.8]} 45... Qg5# {[%clk 0:00:14.4]} 0-1

[Event "*** Titled Tuesday Blitz"]
[Site "Chess.com"]
[Date "2020.12.01"]
[Round "10"]
[White "sopo-tereladze"]
[Black "WelshTiger"]
[Result "1-0"]
[WhiteElo "2319"]
[BlackElo "2437"]
[TimeControl "180+1"]
[EndTime "11:54:03 PST"]
[Termination "sopo-tereladze won by resignation"]

1. d4 {[%clk 0:03:00.9]} 1... f5 {[%clk 0:02:57.5]} 2. Nf3 {[%clk 0:03:01.8]}
2... Nf6 {[%clk 0:02:56.6]} 3. g3 {[%clk 0:02:56.5]} 3... g6 {[%clk 0:02:56.4]}
4. Bg2 {[%clk 0:02:57.4]} 4... Bg7 {[%clk 0:02:56.9]} 5. O-O {[%clk 0:02:58.3]}
5... O-O {[%clk 0:02:57.4]} 6. c4 {[%clk 0:02:57.8]} 6... d6 {[%clk 0:02:56.7]}
7. d5 {[%clk 0:02:57.1]} 7... Na6 {[%clk 0:02:45.6]} 8. Nc3 {[%clk 0:02:55.7]}
8... Nc5 {[%clk 0:02:45.4]} 9. Nd4 {[%clk 0:02:54.2]} 9... a5 {[%clk 0:02:17.8]}
10. b3 {[%clk 0:02:46.4]} 10... Bd7 {[%clk 0:02:17.5]} 11. Bb2 {[%clk
0:02:46.1]} 11... Qe8 {[%clk 0:02:11.4]} 12. Qc2 {[%clk 0:02:45]} 12... c6
{[%clk 0:02:11.5]} 13. Rae1 {[%clk 0:02:39.4]} 13... cxd5 {[%clk 0:02:06.2]} 14.
Nxd5 {[%clk 0:02:35.4]} 14... Nxd5 {[%clk 0:01:58.5]} 15. cxd5 {[%clk
0:02:36.3]} 15... Rc8 {[%clk 0:01:58]} 16. Qb1 {[%clk 0:02:27.7]} 16... Qf7
{[%clk 0:01:53.9]} 17. Nf3 {[%clk 0:02:03.1]} 17... Ne4 {[%clk 0:01:48.4]} 18.
Bxg7 {[%clk 0:02:01.3]} 18... Qxg7 {[%clk 0:01:48.6]} 19. Qd3 {[%clk 0:01:56.1]}
19... Rc3 {[%clk 0:01:46.6]} 20. Qd1 {[%clk 0:01:55]} 20... Bb5 {[%clk
0:01:45.4]} 21. Nd4 {[%clk 0:01:53.4]} 21... Bd7 {[%clk 0:01:31.8]} 22. f3
{[%clk 0:01:51.1]} 22... Nf6 {[%clk 0:01:22.3]} 23. e4 {[%clk 0:01:50.5]} 23...
fxe4 {[%clk 0:01:22.2]} 24. fxe4 {[%clk 0:01:51.4]} 24... Ng4 {[%clk 0:01:20.8]}
25. Rxf8+ {[%clk 0:01:48.8]} 25... Qxf8 {[%clk 0:01:18.7]} 26. Rf1 {[%clk
0:01:46.4]} 26... Qg7 {[%clk 0:01:18.7]} 27. Qd2 {[%clk 0:01:22.5]} 27... Rc8
{[%clk 0:00:58.9]} 28. Bh3 {[%clk 0:01:22.1]} 28... Qe5 {[%clk 0:00:53.2]} 29.
Bxg4 {[%clk 0:00:54.5]} 29... Bxg4 {[%clk 0:00:52.5]} 30. Qe3 {[%clk 0:00:54]}
30... Bd7 {[%clk 0:00:47.2]} 31. Nf3 {[%clk 0:00:46]} 31... Qc3 {[%clk
0:00:46.3]} 32. Qg5 {[%clk 0:00:41.3]} 32... Qf6 {[%clk 0:00:45.5]} 33. Qxf6
{[%clk 0:00:30.5]} 33... e6 {[%clk 0:00:45.6]} 34. dxe6 {[%clk 0:00:29.4]} 1-0

[Event "*** Titled Tuesday Blitz"]
[Site "Chess.com"]
[Date "2020.12.01"]
[Round "10"]
[White "chesstatour"]
[Black "Matols"]
[Result "0-1"]
[WhiteElo "1989"]
[BlackElo "2225"]
[TimeControl "180+1"]
[EndTime "11:54:03 PST"]
[Termination "Matols won on time"]

1. c4 {[%clk 0:03:00.9]} 1... e5 {[%clk 0:02:59.1]} 2. Nc3 {[%clk 0:03:00.5]}
2... Nf6 {[%clk 0:02:59]} 3. g3 {[%clk 0:03:00.9]} 3... d5 {[%clk 0:02:58.6]} 4.
cxd5 {[%clk 0:03:00.5]} 4... Nxd5 {[%clk 0:02:58.8]} 5. Bg2 {[%clk 0:03:01.1]}
5... Nb6 {[%clk 0:02:58.9]} 6. Nf3 {[%clk 0:03:00.7]} 6... Nc6 {[%clk 0:02:58]}
7. O-O {[%clk 0:03:00.1]} 7... Be7 {[%clk 0:02:58]} 8. d3 {[%clk 0:02:55.6]}
8... O-O {[%clk 0:02:57.5]} 9. Be3 {[%clk 0:02:55.8]} 9... Be6 {[%clk
0:02:51.7]} 10. Na4 {[%clk 0:02:49.4]} 10... Nd5 {[%clk 0:02:37.9]} 11. Bc5
{[%clk 0:02:46.3]} 11... f6 {[%clk 0:02:32.6]} 12. Rc1 {[%clk 0:02:36.8]} 12...
b6 {[%clk 0:02:05.5]} 13. Bxe7 {[%clk 0:02:25.8]} 13... Ncxe7 {[%clk 0:02:04.3]}
14. Ne1 {[%clk 0:02:05]} 14... c5 {[%clk 0:02:01.4]} 15. a3 {[%clk 0:02:00.4]}
15... Rc8 {[%clk 0:02:00.5]} 16. Nc3 {[%clk 0:02:00.2]} 16... Qd7 {[%clk
0:01:57.3]} 17. Nc2 {[%clk 0:01:44.9]} 17... Rfd8 {[%clk 0:01:55.5]} 18. Ne3
{[%clk 0:01:24.6]} 18... Nxe3 {[%clk 0:01:47.6]} 19. fxe3 {[%clk 0:01:25.5]}
19... Bh3 {[%clk 0:01:45.3]} 20. Bxh3 {[%clk 0:01:13.9]} 20... Qxh3 {[%clk
0:01:44.5]} 21. e4 {[%clk 0:01:12.6]} 21... c4 {[%clk 0:01:40.3]} 22. Qc2 {[%clk
0:00:39.2]} 22... cxd3 {[%clk 0:01:33.9]} 23. exd3 {[%clk 0:00:37.7]} 23... Nc6
{[%clk 0:01:29.9]} 24. Qb3+ {[%clk 0:00:32.2]} 24... Kh8 {[%clk 0:01:28.7]} 25.
Nd5 {[%clk 0:00:32.1]} 25... Nd4 {[%clk 0:01:25.9]} 26. Rxc8 {[%clk 0:00:13.8]}
26... Rxc8 {[%clk 0:01:24.8]} 27. Qd1 {[%clk 0:00:12.7]} 27... Rc2 {[%clk
0:01:21.7]} 28. Rf2 {[%clk 0:00:11.6]} 28... Rxf2 {[%clk 0:01:18.6]} 29. Kxf2
{[%clk 0:00:12.1]} 29... Qxh2+ {[%clk 0:01:18.8]} 30. Ke3 {[%clk 0:00:10.2]}
30... Qxg3+ {[%clk 0:01:11.2]} 31. Kd2 {[%clk 0:00:09.7]} 31... Qf2+ {[%clk
0:01:09.8]} 32. Kc3 {[%clk 0:00:09.4]} 32... h6 {[%clk 0:01:02.9]} 33. Qa4
{[%clk 0:00:07.3]} 33... Qe1+ {[%clk 0:00:59.3]} 0-1

[Event "*** Titled Tuesday Blitz"]
[Site "Chess.com"]
[Date "2020.12.01"]
[Round "10"]
[White "CoachHakia"]
[Black "toog"]
[Result "1/2-1/2"]
[WhiteElo "2143"]
[BlackElo "2335"]
[TimeControl "180+1"]
[EndTime "11:54:04 PST"]
[Termination "Game drawn by repetition"]

1. e4 {[%clk 0:03:00.9]} 1... c6 {[%clk 0:02:58.6]} 2. d4 {[%clk 0:02:59.9]}
2... d5 {[%clk 0:02:59.5]} 3. exd5 {[%clk 0:03:00.5]} 3... cxd5 {[%clk
0:03:00.4]} 4. Bd3 {[%clk 0:03:00.3]} 4... Nc6 {[%clk 0:03:00]} 5. Nf3 {[%clk
0:02:59.8]} 5... Bg4 {[%clk 0:02:59]} 6. c3 {[%clk 0:03:00.1]} 6... e6 {[%clk
0:02:58.5]} 7. O-O {[%clk 0:03:00]} 7... Bd6 {[%clk 0:02:57.6]} 8. Re1 {[%clk
0:02:59.6]} 8... Nge7 {[%clk 0:02:56.2]} 9. Nbd2 {[%clk 0:02:56.9]} 9... Qc7
{[%clk 0:02:55.3]} 10. h3 {[%clk 0:02:56.7]} 10... Bf5 {[%clk 0:02:54.4]} 11.
Bf1 {[%clk 0:02:35.3]} 11... h6 {[%clk 0:02:52.4]} 12. Ne5 {[%clk 0:02:30.3]}
12... Nxe5 {[%clk 0:02:40.2]} 13. dxe5 {[%clk 0:02:30.4]} 13... Bxe5 {[%clk
0:02:41.1]} 14. Nf3 {[%clk 0:02:30]} 14... Bd6 {[%clk 0:02:39.8]} 15. Nd4 {[%clk
0:02:19.6]} 15... O-O {[%clk 0:02:36.8]} 16. Qh5 {[%clk 0:02:06.2]} 16... Bg6
{[%clk 0:02:33.9]} 17. Qg4 {[%clk 0:02:03.9]} 17... Nf5 {[%clk 0:02:31.3]} 18.
h4 {[%clk 0:01:39.5]} 18... Nxd4 {[%clk 0:02:30.3]} 19. cxd4 {[%clk 0:01:40.4]}
19... Bf5 {[%clk 0:02:27]} 20. Qh5 {[%clk 0:01:35.2]} 20... Rac8 {[%clk
0:02:15]} 21. Be3 {[%clk 0:01:30.1]} 21... Qb6 {[%clk 0:02:09.1]} 22. b3 {[%clk
0:01:19.2]} 22... Ba3 {[%clk 0:02:05.7]} 23. Rad1 {[%clk 0:00:49.5]} 23... Bc2
{[%clk 0:01:53.2]} 24. Rd2 {[%clk 0:00:44.7]} 24... Bb4 {[%clk 0:01:45.3]} 25.
Rxc2 {[%clk 0:00:39.4]} 25... Rxc2 {[%clk 0:01:46.2]} 26. Bxh6 {[%clk
0:00:38.5]} 26... Bxe1 {[%clk 0:01:13.9]} 27. Bxg7 {[%clk 0:00:22.6]} 27...
Bxf2+ {[%clk 0:00:55.9]} 28. Kh1 {[%clk 0:00:22.9]} 28... Kxg7 {[%clk
0:00:38.4]} 29. Qg5+ {[%clk 0:00:22.1]} 29... Kh7 {[%clk 0:00:38.4]} 30. Qh5+
{[%clk 0:00:22.7]} 30... Kg7 {[%clk 0:00:38.3]} 31. Qg5+ {[%clk 0:00:23.4]}
31... Kh7 {[%clk 0:00:38.2]} 32. Qh5+ {[%clk 0:00:24.1]} 32... Kg7 {[%clk
0:00:38.1]} 1/2-1/2

[Event "*** Titled Tuesday Blitz"]
[Site "Chess.com"]
[Date "2020.12.01"]
[Round "10"]
[White "RaphCamora"]
[Black "Mikasinski"]
[Result "1-0"]
[WhiteElo "2417"]
[BlackElo "2287"]
[TimeControl "180+1"]
[EndTime "11:54:05 PST"]
[Termination "RaphCamora won on time"]

1. e4 {[%clk 0:03:00.9]} 1... c5 {[%clk 0:02:59.7]} 2. Nf3 {[%clk 0:03:00.2]}
2... d6 {[%clk 0:02:59.7]} 3. d4 {[%clk 0:02:54.6]} 3... cxd4 {[%clk 0:03:00.6]}
4. Nxd4 {[%clk 0:02:54]} 4... Nf6 {[%clk 0:03:01.2]} 5. Nc3 {[%clk 0:02:54.6]}
5... g6 {[%clk 0:03:01]} 6. Be3 {[%clk 0:02:54.6]} 6... Bg7 {[%clk 0:03:01.5]}
7. f3 {[%clk 0:02:54]} 7... O-O {[%clk 0:03:02.2]} 8. Qd2 {[%clk 0:02:53.2]}
8... Nc6 {[%clk 0:03:02.9]} 9. Bc4 {[%clk 0:02:52.2]} 9... Bd7 {[%clk 0:03:03]}
10. h4 {[%clk 0:02:44]} 10... Rc8 {[%clk 0:03:03.1]} 11. Bb3 {[%clk 0:02:42.3]}
11... h5 {[%clk 0:03:03.6]} 12. O-O-O {[%clk 0:02:41]} 12... Ne5 {[%clk
0:03:03.2]} 13. Bg5 {[%clk 0:02:40]} 13... Rc5 {[%clk 0:03:01.9]} 14. Kb1 {[%clk
0:02:38.4]} 14... b5 {[%clk 0:02:58.2]} 15. g4 {[%clk 0:02:37.9]} 15... hxg4
{[%clk 0:02:56.9]} 16. h5 {[%clk 0:02:30.9]} 16... Nxh5 {[%clk 0:02:55.9]} 17.
Nd5 {[%clk 0:02:14.1]} 17... Re8 {[%clk 0:02:54]} 18. Rxh5 {[%clk 0:02:10.2]}
18... gxh5 {[%clk 0:02:52.7]} 19. Qh2 {[%clk 0:02:09.1]} 19... Rxd5 {[%clk
0:01:37.7]} 20. Bxd5 {[%clk 0:02:10]} 20... Qb6 {[%clk 0:01:37.1]} 21. f4 {[%clk
0:02:00.2]} 21... Ng6 {[%clk 0:01:16.6]} 22. Qxh5 {[%clk 0:01:53.8]} 22... e6
{[%clk 0:01:12.2]} 23. Nf5 {[%clk 0:01:35.4]} 23... exf5 {[%clk 0:01:00.1]} 24.
Qxg6 {[%clk 0:01:34.6]} 24... Be6 {[%clk 0:01:00.4]} 25. Bxe6 {[%clk 0:01:34.3]}
25... Rxe6 {[%clk 0:00:57.9]} 26. Qxf5 {[%clk 0:01:34.8]} 26... g3 {[%clk
0:00:51]} 27. Qg4 {[%clk 0:01:29.7]} 27... Qe3 {[%clk 0:00:33]} 28. e5 {[%clk
0:01:07.8]} 28... d5 {[%clk 0:00:05.1]} 29. Bf6 {[%clk 0:00:50.7]} 1-0

[Event "*** Titled Tuesday Blitz"]
[Site "Chess.com"]
[Date "2020.12.01"]
[Round "10"]
[White "Oglob71"]
[Black "csati17"]
[Result "1-0"]
[WhiteElo "2450"]
[BlackElo "2568"]
[TimeControl "180+1"]
[EndTime "11:54:06 PST"]
[Termination "Oglob71 won on time"]

1. d4 {[%clk 0:03:00.9]} 1... Nf6 {[%clk 0:03:00]} 2. Nf3 {[%clk 0:02:57.3]}
2... g6 {[%clk 0:02:59.3]} 3. c4 {[%clk 0:02:56.2]} 3... Bg7 {[%clk 0:02:57.8]}
4. Nc3 {[%clk 0:02:56.7]} 4... d5 {[%clk 0:02:57.6]} 5. e3 {[%clk 0:02:55.9]}
5... O-O {[%clk 0:02:56.7]} 6. b4 {[%clk 0:02:56.3]} 6... c6 {[%clk 0:02:44.3]}
7. Bb2 {[%clk 0:02:55.1]} 7... dxc4 {[%clk 0:02:42.3]} 8. Bxc4 {[%clk
0:02:52.1]} 8... Nd5 {[%clk 0:02:42.2]} 9. Nxd5 {[%clk 0:02:48.1]} 9... cxd5
{[%clk 0:02:42.3]} 10. Be2 {[%clk 0:02:48.6]} 10... a5 {[%clk 0:02:38.7]} 11. b5
{[%clk 0:02:47.8]} 11... Nd7 {[%clk 0:02:05.1]} 12. O-O {[%clk 0:02:43.7]} 12...
Nb6 {[%clk 0:02:04.1]} 13. Rc1 {[%clk 0:02:42.2]} 13... Bf5 {[%clk 0:02:00.1]}
14. Ba3 {[%clk 0:02:39.8]} 14... Re8 {[%clk 0:01:59.2]} 15. Bc5 {[%clk
0:02:31.7]} 15... Rc8 {[%clk 0:01:54.5]} 16. Qb3 {[%clk 0:02:30.9]} 16... Be4
{[%clk 0:01:46.1]} 17. Nd2 {[%clk 0:02:29.5]} 17... Bf5 {[%clk 0:01:41.5]} 18.
Bxb6 {[%clk 0:02:29.1]} 18... Qxb6 {[%clk 0:01:41.3]} 19. Qxd5 {[%clk
0:02:29.4]} 19... Be6 {[%clk 0:01:41.5]} 20. Qg5 {[%clk 0:02:20.5]} 20... Rxc1
{[%clk 0:01:40.2]} 21. Rxc1 {[%clk 0:02:18.4]} 21... h6 {[%clk 0:01:38.4]} 22.
Qc5 {[%clk 0:02:17.9]} 22... Qxc5 {[%clk 0:01:36.6]} 23. dxc5 {[%clk 0:02:17.5]}
23... Bxa2 {[%clk 0:01:32.7]} 24. Bc4 {[%clk 0:02:17.3]} 24... Bxc4 {[%clk
0:01:27.5]} 25. Nxc4 {[%clk 0:02:17.8]} 25... Ra8 {[%clk 0:00:49.8]} 26. c6
{[%clk 0:02:16.6]} 26... bxc6 {[%clk 0:00:50.2]} 27. bxc6 {[%clk 0:02:16.8]}
27... Ra6 {[%clk 0:00:50.1]} 28. Nb6 {[%clk 0:02:13.5]} 28... Be5 {[%clk
0:00:48.8]} 29. Nd5 {[%clk 0:02:08]} 29... Kg7 {[%clk 0:00:15.5]} 30. c7 {[%clk
0:02:07.6]} 30... Bxc7 {[%clk 0:00:15.6]} 31. Nxc7 {[%clk 0:02:07.8]} 31... Rd6
{[%clk 0:00:14.1]} 32. Nb5 {[%clk 0:02:07.4]} 32... Rd2 {[%clk 0:00:13.6]} 33.
g3 {[%clk 0:02:06.2]} 33... h5 {[%clk 0:00:13.1]} 34. Ra1 {[%clk 0:02:06.3]}
34... h4 {[%clk 0:00:09.5]} 35. gxh4 {[%clk 0:02:04.7]} 35... Rd5 {[%clk
0:00:09.1]} 36. Nc3 {[%clk 0:02:03.8]} 36... Rh5 {[%clk 0:00:08.5]} 37. Ne2
{[%clk 0:02:00.6]} 37... Rxh4 {[%clk 0:00:08.2]} 38. Rxa5 {[%clk 0:01:58.7]}
38... Rb4 {[%clk 0:00:07.1]} 39. Kg2 {[%clk 0:01:56.6]} 39... f6 {[%clk
0:00:06.2]} 40. Ng3 {[%clk 0:01:56.8]} 40... f5 {[%clk 0:00:05.4]} 41. h3 {[%clk
0:01:57.3]} 41... Kf6 {[%clk 0:00:05.2]} 42. Ra6+ {[%clk 0:01:56.4]} 42... e6
{[%clk 0:00:05.6]} 43. f4 {[%clk 0:01:56.3]} 43... Rb2+ {[%clk 0:00:05.4]} 44.
Kf3 {[%clk 0:01:56.2]} 44... Rb1 {[%clk 0:00:05.5]} 45. Ne2 {[%clk 0:01:54.2]}
45... Rb7 {[%clk 0:00:03.1]} 46. Nd4 {[%clk 0:01:53]} 46... Re7 {[%clk
0:00:03.6]} 47. h4 {[%clk 0:01:51.8]} 47... Kf7 {[%clk 0:00:03.3]} 48. Kg3
{[%clk 0:01:51]} 48... Kf6 {[%clk 0:00:03.3]} 49. Nf3 {[%clk 0:01:50.6]} 49...
Re8 {[%clk 0:00:02.6]} 50. Ra7 {[%clk 0:01:47.3]} 50... Rd8 {[%clk 0:00:02.4]}
51. Ne5 {[%clk 0:01:46.9]} 1-0

[Event "*** Titled Tuesday Blitz"]
[Site "Chess.com"]
[Date "2020.12.01"]
[Round "10"]
[White "maxip32"]
[Black "pavelalexandru07"]
[Result "1-0"]
[WhiteElo "2491"]
[BlackElo "2346"]
[TimeControl "180+1"]
[EndTime "11:54:08 PST"]
[Termination "maxip32 won by resignation"]

1. f4 {[%clk 0:02:51.7]} 1... d5 {[%clk 0:02:37.5]} 2. Nf3 {[%clk 0:02:47.5]}
2... Bg4 {[%clk 0:02:37]} 3. e3 {[%clk 0:02:44.7]} 3... Bxf3 {[%clk 0:02:36.8]}
4. Qxf3 {[%clk 0:02:44.3]} 4... e6 {[%clk 0:02:36.8]} 5. b3 {[%clk 0:02:41.5]}
5... Nf6 {[%clk 0:02:35.8]} 6. Bb2 {[%clk 0:02:40.7]} 6... Be7 {[%clk
0:02:36.2]} 7. Nc3 {[%clk 0:02:39.4]} 7... h5 {[%clk 0:02:35.9]} 8. Bd3 {[%clk
0:02:37.2]} 8... c5 {[%clk 0:02:27.3]} 9. Bb5+ {[%clk 0:02:34.1]} 9... Nc6
{[%clk 0:02:27.1]} 10. Bxc6+ {[%clk 0:02:32.6]} 10... bxc6 {[%clk 0:02:28]} 11.
O-O {[%clk 0:02:32.7]} 11... Qc7 {[%clk 0:02:25.3]} 12. Na4 {[%clk 0:02:31.4]}
12... O-O {[%clk 0:02:09.2]} 13. d3 {[%clk 0:02:29.6]} 13... Rad8 {[%clk
0:02:07.4]} 14. g3 {[%clk 0:02:25.5]} 14... d4 {[%clk 0:01:49.6]} 15. e4 {[%clk
0:02:24.2]} 15... e5 {[%clk 0:01:49]} 16. f5 {[%clk 0:02:23.9]} 16... Ng4 {[%clk
0:01:48]} 17. Bc1 {[%clk 0:02:21.3]} 17... g6 {[%clk 0:01:44.6]} 18. h3 {[%clk
0:02:19.5]} 18... Nf6 {[%clk 0:01:21.4]} 19. g4 {[%clk 0:02:18.2]} 19... hxg4
{[%clk 0:01:19.3]} 20. hxg4 {[%clk 0:02:19.1]} 20... Nh7 {[%clk 0:01:19.3]} 21.
Bh6 {[%clk 0:02:14.7]} 21... Bg5 {[%clk 0:01:03]} 22. Bxf8 {[%clk 0:01:53]}
22... Rxf8 {[%clk 0:01:01]} 23. Kg2 {[%clk 0:01:53]} 23... Qe7 {[%clk
0:00:55.5]} 24. Rh1 {[%clk 0:01:50.8]} 24... Bf6 {[%clk 0:00:44.3]} 25. Raf1
{[%clk 0:01:34.7]} 25... Bg7 {[%clk 0:00:35.6]} 26. Qg3 {[%clk 0:01:14.8]} 26...
Qg5 {[%clk 0:00:33.5]} 27. Rf2 {[%clk 0:01:11.3]} 27... Nf6 {[%clk 0:00:15.4]}
28. Qh4 {[%clk 0:00:59]} 28... Qxg4+ {[%clk 0:00:15.2]} 29. Qxg4 {[%clk
0:00:59]} 29... Nxg4 {[%clk 0:00:15.4]} 30. Re2 {[%clk 0:00:59.8]} 30... Ne3+
{[%clk 0:00:15.6]} 31. Kf3 {[%clk 0:00:59.8]} 31... gxf5 {[%clk 0:00:16]} 32.
exf5 {[%clk 0:01:00.4]} 32... Nxf5 {[%clk 0:00:16.5]} 33. Nxc5 {[%clk
0:00:59.2]} 33... Nd6 {[%clk 0:00:16.9]} 34. Nd7 {[%clk 0:00:55.3]} 34... Rd8
{[%clk 0:00:16.5]} 35. Nxe5 {[%clk 0:00:54.9]} 35... Re8 {[%clk 0:00:16.7]} 36.
Nxc6 {[%clk 0:00:51.8]} 36... Rxe2 {[%clk 0:00:17.4]} 37. Kxe2 {[%clk
0:00:51.6]} 37... Nf5 {[%clk 0:00:18.3]} 38. Kf3 {[%clk 0:00:50.4]} 1-0

[Event "*** Titled Tuesday Blitz"]
[Site "Chess.com"]
[Date "2020.12.01"]
[Round "10"]
[White "Pogosian_Manvel"]
[Black "Savagelittlemole"]
[Result "0-1"]
[WhiteElo "2399"]
[BlackElo "2533"]
[TimeControl "180+1"]
[EndTime "11:54:11 PST"]
[Termination "Savagelittlemole won by resignation"]

1. Nf3 {[%clk 0:02:49.4]} 1... c5 {[%clk 0:02:59.7]} 2. g3 {[%clk 0:02:46.9]}
2... d5 {[%clk 0:02:59.8]} 3. Bg2 {[%clk 0:02:47.2]} 3... Nc6 {[%clk 0:03:00]}
4. O-O {[%clk 0:02:47.9]} 4... e5 {[%clk 0:02:59.2]} 5. d3 {[%clk 0:02:47.6]}
5... Nf6 {[%clk 0:02:59.3]} 6. Nbd2 {[%clk 0:02:48.1]} 6... Bd6 {[%clk
0:02:58.9]} 7. e4 {[%clk 0:02:48.6]} 7... O-O {[%clk 0:02:57.5]} 8. a4 {[%clk
0:02:44.7]} 8... Re8 {[%clk 0:02:57]} 9. h3 {[%clk 0:02:38.7]} 9... h6 {[%clk
0:02:54.2]} 10. exd5 {[%clk 0:02:37.5]} 10... Nxd5 {[%clk 0:02:53.5]} 11. Nc4
{[%clk 0:02:38.1]} 11... Bc7 {[%clk 0:02:50.6]} 12. Bd2 {[%clk 0:02:37.6]} 12...
Be6 {[%clk 0:02:48.1]} 13. Re1 {[%clk 0:02:37.6]} 13... f6 {[%clk 0:02:39.4]}
14. Qc1 {[%clk 0:02:36]} 14... Qd7 {[%clk 0:02:37.9]} 15. Kh2 {[%clk 0:02:31.9]}
15... Nb6 {[%clk 0:02:33.9]} 16. b3 {[%clk 0:02:29.5]} 16... Nxc4 {[%clk
0:02:32.3]} 17. bxc4 {[%clk 0:02:29.4]} 17... Rab8 {[%clk 0:02:26.5]} 18. Rb1
{[%clk 0:02:23.2]} 18... b6 {[%clk 0:02:21.1]} 19. Bc3 {[%clk 0:02:04.9]} 19...
Nd4 {[%clk 0:02:18.7]} 20. Nxd4 {[%clk 0:01:54.9]} 20... exd4 {[%clk 0:02:19.6]}
21. Bd2 {[%clk 0:01:54.1]} 21... Kf8 {[%clk 0:02:11.7]} 22. Ra1 {[%clk
0:01:42.7]} 22... Bf5 {[%clk 0:02:01.1]} 23. a5 {[%clk 0:01:35.2]} 23... Rxe1
{[%clk 0:01:58.6]} 24. Qxe1 {[%clk 0:01:33.6]} 24... Re8 {[%clk 0:01:56.1]} 25.
Qd1 {[%clk 0:01:32.3]} 25... Bg6 {[%clk 0:01:48.9]} 26. axb6 {[%clk 0:01:28]}
26... axb6 {[%clk 0:01:49.8]} 27. Ra7 {[%clk 0:01:26.7]} 27... Bxg3+ {[%clk
0:01:46.7]} 28. fxg3 {[%clk 0:01:24]} 28... Qxa7 {[%clk 0:01:46.4]} 29. Qg4
{[%clk 0:01:20.9]} 29... Bf7 {[%clk 0:01:39.2]} 30. Qf5 {[%clk 0:01:07.5]} 30...
Qe7 {[%clk 0:01:34.2]} 31. Qh7 {[%clk 0:01:04.4]} 31... Bg8 {[%clk 0:01:29.4]}
32. Qh8 {[%clk 0:00:59.4]} 32... Qe2 {[%clk 0:01:21.9]} 33. Bf4 {[%clk 0:00:45]}
33... Qxc2 {[%clk 0:01:03.3]} 34. Bd6+ {[%clk 0:00:17.4]} 34... Kf7 {[%clk
0:01:02.5]} 35. Kg1 {[%clk 0:00:07.9]} 35... Re1+ {[%clk 0:00:58.8]} 36. Kh2
{[%clk 0:00:06.4]} 36... Re2 {[%clk 0:00:58.4]} 0-1